[Event "*** Titled Tuesday Blitz"]
[Site "Chess.com"]
[Date "2021.03.30"]
[Round "4"]
[White "As0nchess"]
[Black "VD_coach"]
[Result "1-0"]
[WhiteElo "2632"]
[BlackElo "2481"]
[TimeControl "180+1"]
[EndTime "10:38:13 PDT"]
[Termination "As0nchess won by resignation"]

1. e4 {[%clk 0:02:57.4]} 1... c5 {[%clk 0:02:59.5]} 2. Nf3 {[%clk 0:02:57.3]}
2... d6 {[%clk 0:02:59.7]} 3. d4 {[%clk 0:02:57.6]} 3... cxd4 {[%clk 0:03:00.1]}
4. Nxd4 {[%clk 0:02:58.5]} 4... Nf6 {[%clk 0:03:00.6]} 5. Nc3 {[%clk 0:02:58.9]}
5... g6 {[%clk 0:03:00.8]} 6. f3 {[%clk 0:02:58.7]} 6... Bg7 {[%clk 0:03:00.6]}
7. Be3 {[%clk 0:02:58.4]} 7... O-O {[%clk 0:03:00.7]} 8. Qd2 {[%clk 0:02:58.3]}
8... Nc6 {[%clk 0:03:01.2]} 9. O-O-O {[%clk 0:02:58.4]} 9... Nxd4 {[%clk
0:03:00.8]} 10. Bxd4 {[%clk 0:02:58.4]} 10... Be6 {[%clk 0:03:01.3]} 11. Kb1
{[%clk 0:02:58.3]} 11... Qc7 {[%clk 0:03:01.2]} 12. h4 {[%clk 0:02:17.2]} 12...
Rfc8 {[%clk 0:02:59.4]} 13. h5 {[%clk 0:02:10.2]} 13... Qa5 {[%clk 0:02:59]} 14.
a3 {[%clk 0:02:10]} 14... Rab8 {[%clk 0:02:58.4]} 15. hxg6 {[%clk 0:02:05.2]}
15... hxg6 {[%clk 0:02:59.3]} 16. Bd3 {[%clk 0:02:03.8]} 16... b5 {[%clk
0:02:59.1]} 17. Qg5 {[%clk 0:02:02.8]} 17... d5 {[%clk 0:02:59.1]} 18. Nxd5
{[%clk 0:01:37.7]} 18... Bxd5 {[%clk 0:02:56.3]} 19. exd5 {[%clk 0:01:36.7]}
19... b4 {[%clk 0:02:55.2]} 20. a4 {[%clk 0:01:33]} 20... b3 {[%clk 0:02:52.8]}
21. cxb3 {[%clk 0:01:28.4]} 21... Rxb3 {[%clk 0:02:50]} 22. Bc2 {[%clk
0:01:28.2]} 22... Rxc2 {[%clk 0:02:42.7]} 23. Kxc2 {[%clk 0:01:27.6]} 23... Qxa4
{[%clk 0:02:42.6]} 24. Kb1 {[%clk 0:01:24.5]} 24... Ne4 {[%clk 0:01:43.7]} 25.
Qxe7 {[%clk 0:01:19.7]} 25... Rxb2+ {[%clk 0:00:50.2]} 26. Bxb2 {[%clk
0:01:19.3]} 26... Nc3+ {[%clk 0:00:49.4]} 27. Kc1 {[%clk 0:01:19.5]} 27... Na2+
{[%clk 0:00:44.4]} 28. Kd2 {[%clk 0:01:18.9]} 28... Qf4+ {[%clk 0:00:27]} 29.
Ke2 {[%clk 0:01:12.6]} 29... Qc4+ {[%clk 0:00:10.7]} 30. Rd3 {[%clk 0:01:12.1]}
30... Qc2+ {[%clk 0:00:10.3]} 31. Rd2 {[%clk 0:01:12.1]} 31... Qc4+ {[%clk
0:00:09.6]} 32. Kf2 {[%clk 0:01:12]} 1-0

[Event "*** Titled Tuesday Blitz"]
[Site "Chess.com"]
[Date "2021.03.30"]
[Round "4"]
[White "Limelight2727"]
[Black "PawnEatingZombie"]
[Result "1-0"]
[WhiteElo "2346"]
[BlackElo "2182"]
[TimeControl "180+1"]
[EndTime "10:38:13 PDT"]
[Termination "Limelight2727 won by checkmate"]

1. d4 {[%clk 0:03:00.9]} 1... d5 {[%clk 0:02:59.6]} 2. c4 {[%clk 0:03:01.6]}
2... e6 {[%clk 0:02:59.8]} 3. Nc3 {[%clk 0:03:02.3]} 3... Bb4 {[%clk 0:02:59.7]}
4. cxd5 {[%clk 0:03:00.4]} 4... exd5 {[%clk 0:02:59.3]} 5. Qb3 {[%clk
0:03:00.7]} 5... c5 {[%clk 0:02:58.7]} 6. a3 {[%clk 0:02:59.2]} 6... Bxc3+
{[%clk 0:02:35.8]} 7. Qxc3 {[%clk 0:02:57.9]} 7... cxd4 {[%clk 0:02:31.7]} 8.
Qxd4 {[%clk 0:02:58.8]} 8... Nf6 {[%clk 0:02:31.2]} 9. Qd1 {[%clk 0:02:59.5]}
9... O-O {[%clk 0:02:25.5]} 10. Nf3 {[%clk 0:02:53.6]} 10... Nc6 {[%clk
0:02:22]} 11. g3 {[%clk 0:02:52.2]} 11... d4 {[%clk 0:02:09.2]} 12. Bg2 {[%clk
0:02:49.9]} 12... Bf5 {[%clk 0:02:03.4]} 13. O-O {[%clk 0:02:45.3]} 13... h6
{[%clk 0:01:49.6]} 14. b4 {[%clk 0:02:37.4]} 14... a6 {[%clk 0:01:49.1]} 15. Bb2
{[%clk 0:02:37]} 15... Be4 {[%clk 0:01:37.9]} 16. Nxd4 {[%clk 0:02:33.9]} 16...
Bxg2 {[%clk 0:01:37.8]} 17. Kxg2 {[%clk 0:02:32.5]} 17... Qd5+ {[%clk
0:01:22.9]} 18. Nf3 {[%clk 0:02:29.3]} 18... Qf5 {[%clk 0:01:13.8]} 19. Qd3
{[%clk 0:02:18.9]} 19... Qxd3 {[%clk 0:01:08.2]} 20. exd3 {[%clk 0:02:19.8]}
20... Nd5 {[%clk 0:01:06.7]} 21. Rfe1 {[%clk 0:02:17.3]} 21... Rfe8 {[%clk
0:01:06.7]} 22. Kf1 {[%clk 0:01:29.5]} 22... f6 {[%clk 0:01:03.2]} 23. Nd4
{[%clk 0:01:24.5]} 23... Nxd4 {[%clk 0:00:55.5]} 24. Bxd4 {[%clk 0:01:25.4]}
24... Kf7 {[%clk 0:00:55.1]} 25. f3 {[%clk 0:01:20.7]} 25... Rac8 {[%clk
0:00:53.7]} 26. Rec1 {[%clk 0:01:12.7]} 26... b5 {[%clk 0:00:42.7]} 27. Rc5
{[%clk 0:01:08.3]} 27... Rxc5 {[%clk 0:00:42.4]} 28. Bxc5 {[%clk 0:01:04.2]}
28... g5 {[%clk 0:00:29.8]} 29. Kf2 {[%clk 0:01:01.9]} 29... f5 {[%clk
0:00:24.8]} 30. a4 {[%clk 0:00:58.7]} 30... f4 {[%clk 0:00:13.7]} 31. axb5
{[%clk 0:00:54.2]} 31... axb5 {[%clk 0:00:14.6]} 32. Ra7+ {[%clk 0:00:53.9]}
32... Kg6 {[%clk 0:00:13]} 33. Ra6+ {[%clk 0:00:54]} 33... Kf5 {[%clk
0:00:11.8]} 34. g4+ {[%clk 0:00:52.7]} 34... Ke5 {[%clk 0:00:11.8]} 35. d4#
{[%clk 0:00:53.4]} 1-0

[Event "*** Titled Tuesday Blitz"]
[Site "Chess.com"]
[Date "2021.03.30"]
[Round "4"]
[White "BozeKat"]
[Black "AEMEffi"]
[Result "0-1"]
[WhiteElo "2019"]
[BlackElo "2266"]
[TimeControl "180+1"]
[EndTime "10:38:15 PDT"]
[Termination "AEMEffi won by resignation"]

1. Nf3 {[%clk 0:03:00.9]} 1... d5 {[%clk 0:02:59.7]} 2. c4 {[%clk 0:03:01]} 2...
c6 {[%clk 0:03:00.6]} 3. d4 {[%clk 0:03:01.3]} 3... Nf6 {[%clk 0:03:00.3]} 4.
Nc3 {[%clk 0:03:00.6]} 4... a6 {[%clk 0:03:00.8]} 5. Qc2 {[%clk 0:03:00.3]} 5...
g6 {[%clk 0:02:59.2]} 6. e4 {[%clk 0:03:00.4]} 6... dxe4 {[%clk 0:02:56.4]} 7.
Nxe4 {[%clk 0:03:01.3]} 7... Nxe4 {[%clk 0:02:56.2]} 8. Qxe4 {[%clk 0:03:02.2]}
8... Bg7 {[%clk 0:02:53.5]} 9. Be3 {[%clk 0:02:48.4]} 9... Bf5 {[%clk
0:02:44.3]} 10. Qh4 {[%clk 0:02:44]} 10... Nd7 {[%clk 0:02:32]} 11. Be2 {[%clk
0:02:37.3]} 11... e5 {[%clk 0:02:21]} 12. Bg5 {[%clk 0:02:28.4]} 12... Qa5+
{[%clk 0:02:03.9]} 13. Bd2 {[%clk 0:02:25]} 13... Qb6 {[%clk 0:02:04.3]} 14. Bc3
{[%clk 0:01:59]} 14... Bf6 {[%clk 0:01:36.2]} 15. c5 {[%clk 0:01:26]} 15... Qd8
{[%clk 0:00:54]} 16. Qh6 {[%clk 0:01:15.1]} 16... Qe7 {[%clk 0:00:46.9]} 17.
dxe5 {[%clk 0:00:53.9]} 17... Nxe5 {[%clk 0:00:44.3]} 18. Nxe5 {[%clk
0:00:42.1]} 18... Bxe5 {[%clk 0:00:45.2]} 19. Bxe5 {[%clk 0:00:38]} 19... Qxe5
{[%clk 0:00:46.1]} 20. O-O {[%clk 0:00:26.3]} 20... O-O-O {[%clk 0:00:40]} 21.
Rfe1 {[%clk 0:00:20]} 21... Qxb2 {[%clk 0:00:27.2]} 22. Rab1 {[%clk 0:00:19.7]}
22... Bxb1 {[%clk 0:00:25.3]} 0-1

[Event "*** Titled Tuesday Blitz"]
[Site "Chess.com"]
[Date "2021.03.30"]
[Round "4"]
[White "A-Fier"]
[Black "MalyDominator"]
[Result "1-0"]
[WhiteElo "2672"]
[BlackElo "2488"]
[TimeControl "180+1"]
[EndTime "10:38:16 PDT"]
[Termination "A-Fier won by checkmate"]

1. d4 {[%clk 0:03:00.9]} 1... Nf6 {[%clk 0:02:59.6]} 2. c4 {[%clk 0:03:00.9]}
2... e6 {[%clk 0:03:00.2]} 3. Nc3 {[%clk 0:03:00.9]} 3... d5 {[%clk 0:03:00.5]}
4. cxd5 {[%clk 0:02:59.7]} 4... exd5 {[%clk 0:02:58.4]} 5. Bg5 {[%clk
0:02:59.7]} 5... c6 {[%clk 0:02:58.3]} 6. e3 {[%clk 0:03:00]} 6... Nbd7 {[%clk
0:02:57.6]} 7. Bd3 {[%clk 0:03:00]} 7... Bd6 {[%clk 0:02:57.7]} 8. Nf3 {[%clk
0:02:57.1]} 8... h6 {[%clk 0:02:57.2]} 9. Bh4 {[%clk 0:02:57.1]} 9... O-O {[%clk
0:02:57.2]} 10. O-O {[%clk 0:02:57.1]} 10... Re8 {[%clk 0:02:56.9]} 11. e4
{[%clk 0:02:56.1]} 11... dxe4 {[%clk 0:02:53.3]} 12. Nxe4 {[%clk 0:02:57]} 12...
Be7 {[%clk 0:02:53.7]} 13. Nc3 {[%clk 0:02:52.5]} 13... Nd5 {[%clk 0:02:49.5]}
14. Bg3 {[%clk 0:02:51.5]} 14... N7b6 {[%clk 0:02:41.6]} 15. a3 {[%clk
0:02:51.4]} 15... Be6 {[%clk 0:02:38.7]} 16. Re1 {[%clk 0:02:50.8]} 16... Bd6
{[%clk 0:02:38.6]} 17. Bc2 {[%clk 0:02:51.1]} 17... Bxg3 {[%clk 0:02:38]} 18.
hxg3 {[%clk 0:02:52]} 18... Rc8 {[%clk 0:02:30.2]} 19. Qd3 {[%clk 0:02:52.1]}
19... Nf6 {[%clk 0:02:29.1]} 20. Ne5 {[%clk 0:02:50.5]} 20... Nbd5 {[%clk
0:02:10.2]} 21. Rad1 {[%clk 0:02:48.6]} 21... Qb6 {[%clk 0:02:06.2]} 22. Na4
{[%clk 0:02:47.3]} 22... Qc7 {[%clk 0:01:58.8]} 23. Nc5 {[%clk 0:02:46.8]} 23...
b6 {[%clk 0:01:57.8]} 24. Nxe6 {[%clk 0:02:45.3]} 24... Rxe6 {[%clk 0:01:57.7]}
25. Rc1 {[%clk 0:02:36.1]} 25... Qb7 {[%clk 0:01:42.1]} 26. Bb3 {[%clk
0:02:28.4]} 26... Rce8 {[%clk 0:01:38.4]} 27. Ba4 {[%clk 0:02:25.5]} 27... b5
{[%clk 0:01:30.2]} 28. Bb3 {[%clk 0:02:25.9]} 28... Nd7 {[%clk 0:01:11.1]} 29.
Bxd5 {[%clk 0:02:14.3]} 29... cxd5 {[%clk 0:01:08.7]} 30. f4 {[%clk 0:02:12.1]}
30... b4 {[%clk 0:01:03]} 31. Red1 {[%clk 0:02:05.6]} 31... bxa3 {[%clk
0:01:00.8]} 32. Qxa3 {[%clk 0:02:05.1]} 32... Nf6 {[%clk 0:00:57.6]} 33. Rc5
{[%clk 0:01:37.8]} 33... Ne4 {[%clk 0:00:55.7]} 34. Ra5 {[%clk 0:01:37.3]} 34...
a6 {[%clk 0:00:46.6]} 35. Kh2 {[%clk 0:01:32.8]} 35... Qb6 {[%clk 0:00:40.7]}
36. Rxd5 {[%clk 0:01:31.5]} 36... f6 {[%clk 0:00:27.1]} 37. f5 {[%clk 0:01:21]}
37... R6e7 {[%clk 0:00:17]} 38. Ng6 {[%clk 0:01:21.3]} 38... Rb7 {[%clk
0:00:14.8]} 39. Re1 {[%clk 0:01:21]} 39... Qxb2 {[%clk 0:00:13.9]} 40. Qxb2
{[%clk 0:01:20.6]} 40... Rxb2 {[%clk 0:00:14]} 41. Rxe4 {[%clk 0:01:21.3]} 41...
Rxe4 {[%clk 0:00:11]} 42. Rd8+ {[%clk 0:01:21.2]} 42... Kf7 {[%clk 0:00:11.6]}
43. Rf8# {[%clk 0:01:21.4]} 1-0

[Event "*** Titled Tuesday Blitz"]
[Site "Chess.com"]
[Date "2021.03.30"]
[Round "4"]
[White "Piccadilly123"]
[Black "GAusal"]
[Result "0-1"]
[WhiteElo "2273"]
[BlackElo "2056"]
[TimeControl "180+1"]
[EndTime "10:38:16 PDT"]
[Termination "GAusal won on time"]

1. e4 {[%clk 0:03:00.9]} 1... e5 {[%clk 0:02:58.3]} 2. Nf3 {[%clk 0:03:00.4]}
2... Nc6 {[%clk 0:02:55.1]} 3. d4 {[%clk 0:03:00.9]} 3... exd4 {[%clk 0:02:51]}
4. Bc4 {[%clk 0:03:01.3]} 4... Bb4+ {[%clk 0:02:43.8]} 5. c3 {[%clk 0:03:00.5]}
5... dxc3 {[%clk 0:02:40.3]} 6. bxc3 {[%clk 0:02:59.8]} 6... Ba5 {[%clk
0:02:36.8]} 7. O-O {[%clk 0:02:54]} 7... d6 {[%clk 0:02:30.1]} 8. Bg5 {[%clk
0:02:27.8]} 8... Nf6 {[%clk 0:02:23.4]} 9. Nd4 {[%clk 0:01:50.2]} 9... Ne5
{[%clk 0:02:16.5]} 10. Qa4+ {[%clk 0:01:18.6]} 10... c6 {[%clk 0:02:08.5]} 11.
Be2 {[%clk 0:01:16.8]} 11... Bb6 {[%clk 0:02:02.7]} 12. f4 {[%clk 0:01:07.5]}
12... Ng6 {[%clk 0:01:57.6]} 13. Nd2 {[%clk 0:00:46.4]} 13... O-O {[%clk
0:01:56.3]} 14. Nc4 {[%clk 0:00:40.7]} 14... Bxd4+ {[%clk 0:01:51.9]} 15. cxd4
{[%clk 0:00:40.3]} 15... b5 {[%clk 0:01:48.2]} 16. Qc2 {[%clk 0:00:37.2]} 16...
bxc4 {[%clk 0:01:46.9]} 17. e5 {[%clk 0:00:36.2]} 17... dxe5 {[%clk 0:01:41.2]}
18. dxe5 {[%clk 0:00:35]} 18... Qd4+ {[%clk 0:01:41.1]} 19. Kh1 {[%clk
0:00:33.9]} 19... Nd5 {[%clk 0:01:40.8]} 20. Rad1 {[%clk 0:00:23.4]} 20... Qc5
{[%clk 0:01:21.7]} 21. f5 {[%clk 0:00:19]} 21... Nxe5 {[%clk 0:01:15.1]} 22. Qe4
{[%clk 0:00:18.7]} 22... f6 {[%clk 0:01:14.2]} 23. Bf4 {[%clk 0:00:14.9]} 23...
Nc3 {[%clk 0:01:13.7]} 24. Qc2 {[%clk 0:00:10]} 24... Nxd1 {[%clk 0:01:11.4]}
25. Rxd1 {[%clk 0:00:10.1]} 25... c3 {[%clk 0:01:06.4]} 26. Rc1 {[%clk
0:00:05.3]} 26... Ng4 {[%clk 0:01:02.6]} 27. Bxg4 {[%clk 0:00:03.6]} 27... Re8
{[%clk 0:00:53.8]} 0-1

[Event "*** Titled Tuesday Blitz"]
[Site "Chess.com"]
[Date "2021.03.30"]
[Round "4"]
[White "Onischuk_V"]
[Black "UCantHandleDenker"]
[Result "1-0"]
[WhiteElo "2884"]
[BlackElo "2544"]
[TimeControl "180+1"]
[EndTime "10:38:19 PDT"]
[Termination "Onischuk_V won by resignation"]

1. Nf3 {[%clk 0:02:58.8]} 1... Nf6 {[%clk 0:02:58.7]} 2. g3 {[%clk 0:02:59.3]}
2... d6 {[%clk 0:02:59.1]} 3. Bg2 {[%clk 0:02:59.4]} 3... Nbd7 {[%clk
0:02:58.1]} 4. O-O {[%clk 0:02:59.9]} 4... e5 {[%clk 0:02:58.6]} 5. c4 {[%clk
0:03:00.3]} 5... Be7 {[%clk 0:02:59]} 6. Nc3 {[%clk 0:03:00.6]} 6... O-O {[%clk
0:02:59.5]} 7. b4 {[%clk 0:02:57.1]} 7... a5 {[%clk 0:02:55.5]} 8. b5 {[%clk
0:02:54.6]} 8... Re8 {[%clk 0:02:55.6]} 9. a4 {[%clk 0:02:50.2]} 9... Bf8 {[%clk
0:02:53.3]} 10. Ba3 {[%clk 0:02:50.3]} 10... e4 {[%clk 0:02:33.6]} 11. Nd4
{[%clk 0:02:49.3]} 11... Nc5 {[%clk 0:02:34]} 12. Nb3 {[%clk 0:02:38.9]} 12...
b6 {[%clk 0:02:14.2]} 13. d3 {[%clk 0:02:09.9]} 13... Bb7 {[%clk 0:02:02.9]} 14.
Bxc5 {[%clk 0:02:09]} 14... dxc5 {[%clk 0:02:01.3]} 15. Nd2 {[%clk 0:02:08.6]}
15... g6 {[%clk 0:00:44.7]} 16. Ncxe4 {[%clk 0:02:07.4]} 16... Nxe4 {[%clk
0:00:44.7]} 17. Nxe4 {[%clk 0:02:03.3]} 17... Bxe4 {[%clk 0:00:44.7]} 18. Bxe4
{[%clk 0:02:02.9]} 18... Rb8 {[%clk 0:00:44.1]} 19. e3 {[%clk 0:02:01.3]} 19...
Bg7 {[%clk 0:00:44]} 20. Rb1 {[%clk 0:02:01.1]} 20... Qd6 {[%clk 0:00:42.8]} 21.
Qf3 {[%clk 0:02:00.3]} 21... Re5 {[%clk 0:00:40.1]} 22. Bd5 {[%clk 0:01:55]}
22... Rf8 {[%clk 0:00:36.7]} 23. Rbe1 {[%clk 0:01:52.8]} 23... h5 {[%clk
0:00:35.9]} 24. h4 {[%clk 0:01:47.1]} 24... Rf5 {[%clk 0:00:36.2]} 25. Qg2
{[%clk 0:01:46.5]} 25... g5 {[%clk 0:00:35.1]} 26. e4 {[%clk 0:01:31.9]} 26...
Re5 {[%clk 0:00:32]} 27. f4 {[%clk 0:01:32.1]} 27... gxf4 {[%clk 0:00:32]} 28.
gxf4 {[%clk 0:01:32.2]} 28... Ree8 {[%clk 0:00:32.5]} 29. e5 {[%clk 0:01:31.6]}
29... Qh6 {[%clk 0:00:32.3]} 30. Re3 {[%clk 0:01:26.2]} 30... Kh8 {[%clk
0:00:31.7]} 31. Rg3 {[%clk 0:01:26.1]} 31... Bxe5 {[%clk 0:00:16.3]} 32. fxe5
{[%clk 0:01:22.4]} 32... Rxe5 {[%clk 0:00:17.2]} 33. Kh2 {[%clk 0:01:19.8]}
33... Qd6 {[%clk 0:00:09.1]} 34. Qf3 {[%clk 0:01:14.5]} 34... Rg8 {[%clk
0:00:04.7]} 35. Rxg8+ {[%clk 0:01:12.3]} 35... Kxg8 {[%clk 0:00:04.8]} 36. Qxf7+
{[%clk 0:01:12]} 1-0

[Event "*** Titled Tuesday Blitz"]
[Site "Chess.com"]
[Date "2021.03.30"]
[Round "4"]
[White "Duhless"]
[Black "Iball95"]
[Result "1-0"]
[WhiteElo "3048"]
[BlackElo "2665"]
[TimeControl "180+1"]
[EndTime "10:38:23 PDT"]
[Termination "Duhless won by resignation"]

1. d4 {[%clk 0:03:00.9]} 1... d5 {[%clk 0:02:58.8]} 2. c4 {[%clk 0:03:00.2]}
2... e6 {[%clk 0:02:59.4]} 3. Nf3 {[%clk 0:02:58.3]} 3... Nf6 {[%clk 0:02:55.5]}
4. g3 {[%clk 0:02:58.2]} 4... Bb4+ {[%clk 0:02:55]} 5. Nbd2 {[%clk 0:02:57.2]}
5... O-O {[%clk 0:02:54.1]} 6. Bg2 {[%clk 0:02:57]} 6... b6 {[%clk 0:02:53.7]}
7. O-O {[%clk 0:02:56.9]} 7... Bb7 {[%clk 0:02:53.3]} 8. b3 {[%clk 0:02:56.9]}
8... Nbd7 {[%clk 0:02:49.6]} 9. Bb2 {[%clk 0:02:56.4]} 9... Re8 {[%clk
0:02:44.6]} 10. a3 {[%clk 0:02:52.5]} 10... Bf8 {[%clk 0:02:42.8]} 11. Ne5
{[%clk 0:02:52.3]} 11... c5 {[%clk 0:02:28.5]} 12. Nxd7 {[%clk 0:02:46.3]} 12...
Qxd7 {[%clk 0:02:19.4]} 13. dxc5 {[%clk 0:02:44]} 13... Bxc5 {[%clk 0:02:09.6]}
14. Bxf6 {[%clk 0:02:41.1]} 14... gxf6 {[%clk 0:02:10.5]} 15. Ne4 {[%clk
0:02:30.2]} 15... Be7 {[%clk 0:02:06.6]} 16. cxd5 {[%clk 0:02:29.3]} 16... Bxd5
{[%clk 0:02:05.7]} 17. Nc3 {[%clk 0:02:28.5]} 17... Rad8 {[%clk 0:02:00.4]} 18.
Nxd5 {[%clk 0:02:26.1]} 18... exd5 {[%clk 0:02:01.3]} 19. Qd3 {[%clk 0:02:19.4]}
19... a5 {[%clk 0:01:29.1]} 20. Rfd1 {[%clk 0:02:00.7]} 20... Bc5 {[%clk
0:01:14.6]} 21. Bxd5 {[%clk 0:01:48.2]} 21... Qe7 {[%clk 0:01:14.6]} 22. e3
{[%clk 0:01:18.2]} 22... Bxa3 {[%clk 0:01:10.9]} 23. Qf5 {[%clk 0:01:16.9]}
23... Bb2 {[%clk 0:01:00.3]} 24. Ra4 {[%clk 0:01:12.5]} 24... Qe5 {[%clk
0:00:53.5]} 25. Qf3 {[%clk 0:00:47.2]} 25... Rd7 {[%clk 0:00:35.3]} 26. Re4
{[%clk 0:00:41.9]} 26... Qb8 {[%clk 0:00:18.7]} 27. Qg4+ {[%clk 0:00:40.1]}
27... Kf8 {[%clk 0:00:15]} 28. Qxd7 {[%clk 0:00:41]} 1-0

[Event "*** Titled Tuesday Blitz"]
[Site "Chess.com"]
[Date "2021.03.30"]
[Round "4"]
[White "Vanina1989"]
[Black "UKR_Master"]
[Result "1-0"]
[WhiteElo "2766"]
[BlackElo "2568"]
[TimeControl "180+1"]
[EndTime "10:38:25 PDT"]
[Termination "Vanina1989 won by resignation"]

1. d4 {[%clk 0:03:00.9]} 1... Nf6 {[%clk 0:02:59.9]} 2. c4 {[%clk 0:03:01.1]}
2... g6 {[%clk 0:02:59.5]} 3. Nc3 {[%clk 0:03:00.9]} 3... d5 {[%clk 0:03:00.2]}
4. cxd5 {[%clk 0:03:00.1]} 4... Nxd5 {[%clk 0:03:01]} 5. e4 {[%clk 0:03:00.7]}
5... Nxc3 {[%clk 0:03:01.7]} 6. bxc3 {[%clk 0:03:01.3]} 6... Bg7 {[%clk
0:03:02.5]} 7. Bc4 {[%clk 0:03:01.7]} 7... c5 {[%clk 0:03:02.7]} 8. Ne2 {[%clk
0:03:02.4]} 8... O-O {[%clk 0:03:03]} 9. O-O {[%clk 0:03:02.1]} 9... Nc6 {[%clk
0:03:02.5]} 10. Be3 {[%clk 0:02:56.2]} 10... Qc7 {[%clk 0:03:00.7]} 11. Qc1
{[%clk 0:02:27.6]} 11... Rd8 {[%clk 0:02:53]} 12. Bd5 {[%clk 0:02:13.9]} 12...
e6 {[%clk 0:02:36.5]} 13. Bb3 {[%clk 0:02:13.1]} 13... b6 {[%clk 0:02:18.4]} 14.
Bf4 {[%clk 0:02:09.4]} 14... Qe7 {[%clk 0:01:59.8]} 15. d5 {[%clk 0:01:04.6]}
15... exd5 {[%clk 0:01:41.8]} 16. Bxd5 {[%clk 0:01:04]} 16... Bb7 {[%clk
0:01:37]} 17. Qe3 {[%clk 0:01:03.6]} 17... Na5 {[%clk 0:01:14.4]} 18. Bg5 {[%clk
0:00:59]} 18... Bf6 {[%clk 0:01:12.7]} 19. Bxf6 {[%clk 0:00:59.2]} 19... Qxf6
{[%clk 0:01:13.1]} 20. c4 {[%clk 0:00:55.7]} 20... Re8 {[%clk 0:01:03.4]} 21.
Rad1 {[%clk 0:00:49.7]} 21... Qb2 {[%clk 0:00:57.5]} 22. Rd2 {[%clk 0:00:48.3]}
22... Qb4 {[%clk 0:00:54]} 23. Nc3 {[%clk 0:00:30.9]} 23... Nxc4 {[%clk
0:00:41.1]} 24. Bxf7+ {[%clk 0:00:29.2]} 24... Kg7 {[%clk 0:00:26.5]} 25. Bxc4
{[%clk 0:00:28.5]} 25... Qxc4 {[%clk 0:00:21.8]} 26. Rd7+ {[%clk 0:00:28.5]}
26... Kg8 {[%clk 0:00:22.4]} 27. Qh6 {[%clk 0:00:25.2]} 1-0

[Event "*** Titled Tuesday Blitz"]
[Site "Chess.com"]
[Date "2021.03.30"]
[Round "4"]
[White "Evgeny81"]
[Black "ErikBlomqvist"]
[Result "1-0"]
[WhiteElo "2774"]
[BlackElo "2607"]
[TimeControl "180+1"]
[EndTime "10:38:26 PDT"]
[Termination "Evgeny81 won by resignation"]

1. e4 {[%clk 0:03:00.9]} 1... c5 {[%clk 0:02:56.3]} 2. Nf3 {[%clk 0:03:00.7]}
2... e6 {[%clk 0:02:56.6]} 3. d4 {[%clk 0:03:00.4]} 3... cxd4 {[%clk 0:02:57.5]}
4. Nxd4 {[%clk 0:03:01.1]} 4... Nc6 {[%clk 0:02:58.1]} 5. Nb5 {[%clk 0:03:00.5]}
5... d6 {[%clk 0:02:57.8]} 6. c4 {[%clk 0:03:00.6]} 6... Nf6 {[%clk 0:02:58.4]}
7. N5c3 {[%clk 0:03:00.7]} 7... Be7 {[%clk 0:02:57.5]} 8. Be2 {[%clk 0:03:01.2]}
8... O-O {[%clk 0:02:57.7]} 9. O-O {[%clk 0:03:01.6]} 9... b6 {[%clk 0:02:57.7]}
10. Be3 {[%clk 0:03:01.4]} 10... Bb7 {[%clk 0:02:57.6]} 11. f3 {[%clk
0:03:01.5]} 11... Rc8 {[%clk 0:02:53.9]} 12. b3 {[%clk 0:03:00.6]} 12... Re8
{[%clk 0:02:38.1]} 13. Kh1 {[%clk 0:02:56.7]} 13... Qc7 {[%clk 0:02:31.1]} 14.
a3 {[%clk 0:02:50.9]} 14... Qb8 {[%clk 0:02:29.3]} 15. Ra2 {[%clk 0:02:51]}
15... Ne5 {[%clk 0:02:23.7]} 16. Rd2 {[%clk 0:02:46.7]} 16... Ng6 {[%clk
0:02:16.1]} 17. Bf2 {[%clk 0:02:36.6]} 17... h5 {[%clk 0:02:10.1]} 18. Re1
{[%clk 0:02:31.2]} 18... h4 {[%clk 0:02:09.3]} 19. Bf1 {[%clk 0:02:30.6]} 19...
h3 {[%clk 0:02:09.3]} 20. g3 {[%clk 0:02:29.7]} 20... Ne5 {[%clk 0:01:59]} 21.
Bxh3 {[%clk 0:02:26.4]} 21... d5 {[%clk 0:01:57.9]} 22. cxd5 {[%clk 0:02:21.4]}
22... exd5 {[%clk 0:01:50.9]} 23. Bxc8 {[%clk 0:02:20.9]} 23... Qxc8 {[%clk
0:01:51.5]} 24. exd5 {[%clk 0:02:12.6]} 24... Bd6 {[%clk 0:01:44.9]} 25. Kg2
{[%clk 0:01:59.9]} 25... Qf5 {[%clk 0:01:40.3]} 26. Bd4 {[%clk 0:01:53.2]} 26...
Re7 {[%clk 0:01:03.5]} 27. Bxe5 {[%clk 0:01:45.3]} 27... Rxe5 {[%clk 0:01:03.6]}
28. Rxe5 {[%clk 0:01:44.1]} 28... Qxe5 {[%clk 0:01:04.1]} 29. Qe2 {[%clk
0:01:38.9]} 29... Qh5 {[%clk 0:01:02.7]} 30. Ne4 {[%clk 0:01:34.3]} 30... Nxe4
{[%clk 0:00:44]} 31. Qxe4 {[%clk 0:01:35.2]} 31... Ba6 {[%clk 0:00:36.6]} 32.
Nc3 {[%clk 0:01:26.1]} 32... Qg5 {[%clk 0:00:26.9]} 33. Rd1 {[%clk 0:01:14.1]}
33... Qf6 {[%clk 0:00:22.9]} 34. Qe8+ {[%clk 0:01:06.2]} 34... Kh7 {[%clk
0:00:22.9]} 35. Ne4 {[%clk 0:01:06.9]} 35... Qb2+ {[%clk 0:00:22.5]} 36. Rd2
{[%clk 0:01:07.3]} 36... Qc1 {[%clk 0:00:21.1]} 37. Rf2 {[%clk 0:01:02.9]} 37...
Bxa3 {[%clk 0:00:11]} 38. Qxf7 {[%clk 0:01:02.4]} 1-0

[Event "*** Titled Tuesday Blitz"]
[Site "Chess.com"]
[Date "2021.03.30"]
[Round "4"]
[White "DonPreuss"]
[Black "Tpros"]
[Result "0-1"]
[WhiteElo "2281"]
[BlackElo "2462"]
[TimeControl "180+1"]
[EndTime "10:38:27 PDT"]
[Termination "Tpros won by checkmate"]

1. d4 {[%clk 0:02:56.8]} 1... Nf6 {[%clk 0:02:58.9]} 2. Nc3 {[%clk 0:02:56.2]}
2... d5 {[%clk 0:02:57.9]} 3. e4 {[%clk 0:02:56.4]} 3... dxe4 {[%clk 0:02:57.4]}
4. f3 {[%clk 0:02:56.4]} 4... exf3 {[%clk 0:02:57.3]} 5. Nxf3 {[%clk 0:02:56]}
5... g6 {[%clk 0:02:56.6]} 6. Bd3 {[%clk 0:02:50.8]} 6... Bg7 {[%clk 0:02:55.5]}
7. O-O {[%clk 0:02:50.9]} 7... O-O {[%clk 0:02:54.4]} 8. Qe1 {[%clk 0:02:51.1]}
8... Nc6 {[%clk 0:02:50.9]} 9. Qh4 {[%clk 0:02:47.8]} 9... Bg4 {[%clk
0:02:45.6]} 10. Ne2 {[%clk 0:02:38.7]} 10... Qd5 {[%clk 0:02:24.2]} 11. Nf4
{[%clk 0:02:24.3]} 11... Qd6 {[%clk 0:01:58.3]} 12. c3 {[%clk 0:02:12]} 12...
Bxf3 {[%clk 0:01:42.8]} 13. Rxf3 {[%clk 0:02:08.2]} 13... e5 {[%clk 0:01:42.7]}
14. Nh3 {[%clk 0:01:53.3]} 14... e4 {[%clk 0:01:19.2]} 15. Bxe4 {[%clk
0:01:43.9]} 15... Nxe4 {[%clk 0:01:20.1]} 16. Qxe4 {[%clk 0:01:43.4]} 16... Rae8
{[%clk 0:01:20.1]} 17. Qh4 {[%clk 0:01:43.4]} 17... f6 {[%clk 0:01:10.8]} 18.
Bh6 {[%clk 0:01:40.7]} 18... Re2 {[%clk 0:00:59.9]} 19. Rf2 {[%clk 0:01:04.1]}
19... Rfe8 {[%clk 0:00:51.7]} 20. Raf1 {[%clk 0:01:01.7]} 20... Rxf2 {[%clk
0:00:48.9]} 21. Nxf2 {[%clk 0:00:55.1]} 21... Bxh6 {[%clk 0:00:40.9]} 22. Qxh6
{[%clk 0:00:54.4]} 22... Re2 {[%clk 0:00:33.1]} 23. Nh3 {[%clk 0:00:44.7]} 23...
Qe7 {[%clk 0:00:28.6]} 24. Nf4 {[%clk 0:00:29.5]} 24... Qe3+ {[%clk 0:00:26.2]}
25. Kh1 {[%clk 0:00:29.4]} 25... Rf2 {[%clk 0:00:20.3]} 26. Qh4 {[%clk
0:00:20.6]} 26... Rxf1# {[%clk 0:00:19.3]} 0-1